bitfinex/quotes_BTCUSD_20230106
["timestamp","ask_amount","ask_price","bid_price","bid_amount"]
[1672973383697,0.80377607,16842.0,16841.0,1.22328608]
[1672973383952,0.80377607,16842.0,16841.0,1.28409008]
[1672973384217,0.80377607,16842.0,16841.0,1.28422454]
[1672973385224,0.80177607,16842.0,16841.0,0.59451808]
[1672973385478,0.48143115,16842.0,16841.0,0.002]
[1672973385679,0.44543115,16842.0,16841.0,0.59451808]
[1672973385949,0.80379823,16842.0,16841.0,0.62951808]
[1672973386214,0.80179823,16842.0,16841.0,0.65545954]
[1672973386469,0.83779823,16842.0,16841.0,0.65745954]
[1672973386719,0.80179823,16842.0,16841.0,0.65532508]
[1672973386944,0.80379823,16842.0,16841.0,0.62951808]
[1672973387208,0.44743115,16842.0,16841.0,0.59451808]
[1672973387950,0.80382232,16842.0,16841.0,0.65532508]
[1672973388205,0.83982232,16842.0,16841.0,0.65732508]
[1672973388423,0.44543115,16842.0,16841.0,0.59451808]
[1672973389148,0.44743115,16842.0,16841.0,0.62951808]
[1672973389404,0.55806357,16842.0,16841.0,0.59451808]
[1672973389646,0.59406357,16842.0,16841.0,0.002]
[1672973389907,0.55806357,16842.0,16841.0,0.59451808]
[1672973390167,0.56006357,16842.0,16841.0,0.62951808]
[1672973390680,0.56006357,16842.0,16841.0,0.62965254]
[1672973390936,0.56006357,16842.0,16841.0,0.59451808]
[1672973391188,0.59406357,16842.0,16841.0,0.002]
[1672973391449,0.59406357,16842.0,16841.0,0.59451808]
[1672973391728,0.59406357,16842.0,16841.0,0.035]
[1672973391729,0.59606357,16842.0,16841.0,0.035]
[1672973392011,0.55806357,16842.0,16841.0,0.59451808]
[1672973392227,0.59406357,16842.0,16841.0,0.002]
[1672973392495,0.55806357,16842.0,16841.0,0.59451808]
[1672973392754,0.56006357,16842.0,16841.0,0.035]
[1672973393015,0.11263242,16842.0,16841.0,0.59451808]
[1672973393257,0.48152402,16842.0,16841.0,0.59665254]
[1672973393498,0.48152402,16842.0,16841.0,0.65545954]
[1672973393752,0.48352402,16842.0,16841.0,0.69045954]
[1672973394260,0.48352402,16842.0,16841.0,1.90715943]
[1672973394527,0.83993558,16842.0,16841.0,1.90715943]
[1672973394763,0.80193558,16842.0,16841.0,1.87215943]
[1672973395010,0.80193558,16842.0,16841.0,2.46584259]
[1672973395267,0.62371493,16842.0,16841.0,2.46584259]
[1672973395521,0.62571493,16842.0,16841.0,2.46584259]
[1672973395766,0.62371493,16842.0,16841.0,2.46584259]
[1672973396026,0.65971493,16842.0,16841.0,2.46784259]
[1672973396286,0.8379009,16842.0,16841.0,2.46784259]
[1672973396544,0.8399009,16842.0,16841.0,2.50084259]
[1672973396860,0.8019009,16842.0,16841.0,2.46584259]
[1672973397312,0.62381977,16842.0,16841.0,2.46581297]
[1672973397556,0.62371493,16842.0,16841.0,2.46581297]
[1672973398326,0.62571493,16842.0,16841.0,2.50081297]
[1672973398592,0.62571493,16842.0,16841.0,2.46581297]
[1672973398593,0.62371493,16842.0,16841.0,2.46581297]
[1672973398850,0.65971493,16842.0,16841.0,2.46781297]
[1672973399102,0.62371493,16842.0,16841.0,2.46581297]
[1672973399379,0.80389865,16842.0,16841.0,2.50081297]
[1672973400136,0.62571493,16842.0,16841.0,2.50081297]
[1672973400405,0.62371493,16842.0,16841.0,2.46581297]
[1672973400692,0.48148995,16842.0,16841.0,2.46781297]
[1672973400883,0.62371493,16842.0,16841.0,2.46581297]
[1672973401389,0.61405193,16842.0,16841.0,2.50081297]
[1672973403159,0.79223983,16842.0,16841.0,2.50081297]
[1672973404202,0.43582827,16842.0,16841.0,2.50081297]
[1672973404940,0.79223983,16842.0,16841.0,2.50081297]
[1672973405672,0.43582827,16842.0,16841.0,2.50081297]
[1672973405927,0.79223983,16842.0,16841.0,2.50081297]
[1672973406432,0.43582827,16842.0,16841.0,2.50081297]
[1672973407189,0.79223983,16842.0,16841.0,2.50081297]
[1672973407437,0.43582827,16842.0,16841.0,2.50081297]
[1672973407946,0.61405193,16842.0,16841.0,2.50081297]
[1672973409993,0.79222026,16842.0,16841.0,2.50081297]
[1672973410730,0.4358087,16842.0,16841.0,2.50081297]
[1672973412271,0.4358087,16842.0,16841.0,2.49967797]
[1672973412518,0.61405193,16842.0,16841.0,2.49967797]
[1672973413827,0.79221319,16842.0,16841.0,2.49967797]
[1672973414334,0.43580163,16842.0,16841.0,2.49967797]
[1672973414814,0.43580163,16842.0,16841.0,2.43887097]
[1672973414815,0.43590647,16842.0,16841.0,2.43887097]
[1672973415066,0.61415677,16842.0,16841.0,2.43887097]
[1672973415333,0.61415677,16842.0,16841.0,2.49967797]
[1672973415583,0.61405193,16842.0,16841.0,2.49967797]
[1672973416351,0.79220836,16842.0,16841.0,2.49967797]
[1672973416614,0.61405193,16842.0,16841.0,2.49967797]
[1672973419212,0.43579438,16842.0,16841.0,2.49967797]
[1672973425943,0.61415677,16842.0,16841.0,2.49967797]
[1672973426461,0.61405193,16842.0,16841.0,2.49967797]
[1672973428887,0.61415677,16842.0,16841.0,2.49967797]
[1672973429157,0.61405193,16842.0,16841.0,2.49967797]
[1672973430951,1.05968079,16842.0,16841.0,2.43887097]
[1672973431245,1.07642281,16842.0,16841.0,0.035]
[1672973431454,1.24254279,16842.0,16841.0,0.035]
[1672973431980,0.63089879,16842.0,16841.0,0.035]
[1672973432232,1.07631833,16842.0,16841.0,0.035]
[1672973432758,0.63089879,16842.0,16841.0,0.035]
[1672973433240,1.07625424,16842.0,16841.0,0.035]
[1672973433798,1.07625424,16842.0,16841.0,0.03490302]
[1672973434297,1.07625424,16842.0,16841.0,0.6294211]
[1672973434807,1.07625424,16842.0,16841.0,0.03490302]
[1672973435318,1.07635908,16842.0,16841.0,0.03490302]
[1672973437374,1.07625424,16842.0,16841.0,0.03490302]
[1672973439374,1.07635908,16842.0,16841.0,0.03490302]
[1672973439527,1.07625424,16842.0,16841.0,0.03490302]
[1672973443245,1.07608143,16842.0,16841.0,0.03490302]
[1672973443760,0.63079395,16842.0,16841.0,0.03490302]
[1672973443987,0.63089879,16842.0,16841.0,0.03490302]
[1672973444323,0.63079395,16842.0,16841.0,0.03490302]
[1672973445112,0.63089879,16842.0,16841.0,0.03490302]
[1672973445373,0.63079395,16842.0,16841.0,0.03490302]
[1672973445922,1.07604778,16842.0,16841.0,0.03490302]
[1672973448035,1.07615262,16842.0,16841.0,0.03490302]
[1672973448337,0.80343164,16842.0,16841.0,1.97199702]
[1672973448797,0.62530826,16842.0,16841.0,1.97199702]
[1672973449024,0.62530826,16842.0,16841.0,2.56578502]
[1672973454176,0.8034006,16842.0,16841.0,2.56578502]
[1672973454435,0.44722279,16842.0,16841.0,2.56578502]
[1672973454955,0.44722279,16842.0,16841.0,2.50497802]
[1672973455471,0.44722279,16842.0,16841.0,2.56578502]
[1672973455971,0.62530826,16842.0,16841.0,2.56578502]
[1672973460990,0.80340957,16842.0,16841.0,2.56578502]
[1672973461496,0.44723176,16842.0,16841.0,2.56578502]
[1672973474731,0.18010131,16842.0,16841.0,2.56578502]
[1672973480504,0.14847771,16842.0,16841.0,2.56578502]
[1672973482504,0.14858255,16842.0,16841.0,2.56578502]
[1672973482752,0.14847771,16842.0,16841.0,2.56578502]
[1672973484176,0.41560816,16842.0,16841.0,2.56578502]
[1672973500196,0.41560816,16842.0,16841.0,2.50497802]
[1672973500750,0.41560816,16842.0,16841.0,2.56578502]
[1672973501768,0.41560816,16842.0,16841.0,2.50497802]
[1672973502037,0.41560816,16842.0,16841.0,2.56578502]
[1672973504126,0.77178597,16842.0,16841.0,2.56578502]
[1672973506238,0.62330826,16842.0,16841.0,2.56578502]
[1672973506482,0.62330826,16842.0,16841.0,2.56569432]
[1672973507049,0.44536504,16842.0,16841.0,2.56569432]
[1672973507329,0.44536504,16842.0,16841.0,2.50488732]
[1672973507860,0.44536504,16842.0,16841.0,2.56569432]
[1672973508919,0.44536504,16842.0,16841.0,2.50488732]
[1672973509395,0.44536504,16842.0,16841.0,2.56569432]
[1672973510181,0.80154285,16842.0,16841.0,2.56569432]
[1672973510428,0.80164769,16842.0,16841.0,2.50488732]
[1672973510693,0.62330826,16842.0,16841.0,2.56569432]
[1672973512643,0.62330826,16842.0,16841.0,2.50488732]
[1672973513146,0.62330826,16842.0,16841.0,2.56569432]
[1672973513392,0.80155595,16842.0,16841.0,2.56569432]
[1672973513636,0.44537814,16842.0,16841.0,2.56569432]
[1672973518742,0.62330826,16842.0,16841.0,2.56569432]
[1672973522608,1.06856209,16842.0,16841.0,2.56569432]
[1672973522867,1.06881367,16842.0,16841.0,2.56569432]
[1672973523123,0.80143164,16842.0,16841.0,2.56569432]
[1672973523910,0.80153648,16842.0,16841.0,2.56569432]
[1672973524175,0.80143164,16842.0,16841.0,2.56569432]
[1672973526253,1.06877657,16842.0,16841.0,2.56569432]
[1672973526774,0.62352274,16842.0,16841.0,2.56569432]
[1672973526996,1.06877657,16842.0,16841.0,2.56569432]
[1672973527511,0.62352274,16842.0,16841.0,2.56569432]
[1672973528301,1.06877657,16842.0,16841.0,2.56569432]
[1672973528553,0.62352274,16842.0,16841.0,2.50488732]
[1672973528808,1.06877657,16842.0,16841.0,2.50488732]
[1672973529299,0.62352274,16842.0,16841.0,2.56569432]
[1672973530806,0.62352274,16842.0,16841.0,1.37811832]
[1672973531069,0.62352274,16842.0,16841.0,1.97117624]
[1672973532086,0.62352274,16842.0,16841.0,2.56569432]
[1672973535945,0.445551,16842.0,16841.0,2.56569432]
[1672973536204,0.445551,16842.0,16841.0,2.50488732]
[1672973536432,0.445551,16842.0,16841.0,2.56569432]
[1672973537481,0.445551,16842.0,16841.0,2.50488732]
[1672973537994,0.445551,16842.0,16841.0,2.56569432]
[1672973543402,0.445551,16842.0,16841.0,2.50488732]
[1672973543949,0.445551,16842.0,16841.0,2.56569432]
[1672973544652,0.445551,16842.0,16841.0,2.50488732]
[1672973544902,0.80172881,16842.0,16841.0,2.50488732]
[1672973545151,0.80172881,16842.0,16841.0,2.56569432]
[1672973545152,0.62352274,16842.0,16841.0,2.56569432]
[1672973548706,0.80172931,16842.0,16841.0,2.50488732]
[1672973548969,0.4455515,16842.0,16841.0,2.50488732]
[1672973549220,0.80172931,16842.0,16841.0,2.56569432]
[1672973550230,0.62352274,16842.0,16841.0,2.56569432]
[1672973550809,0.80173193,16842.0,16841.0,2.56569432]
[1672973551035,0.62352274,16842.0,16841.0,2.56569432]
[1672973551294,0.80173163,16842.0,16841.0,2.50488732]
[1672973551822,0.80173163,16842.0,16841.0,2.56569432]
[1672973554037,0.62352274,16842.0,16841.0,2.56569432]
[1672973558418,0.44556971,16842.0,16841.0,2.56569432]
[1672973569332,0.17822478,16842.0,16841.0,2.56569432]
[1672973571409,0.44556971,16842.0,16841.0,2.56569432]
[1672973574614,0.17822478,16842.0,16841.0,2.56569432]
[1672973574844,0.44548143,16842.0,16841.0,2.56569432]
[1672973575103,0.1781365,16842.0,16841.0,2.56569432]
[1672973575324,0.44548143,16842.0,16841.0,2.56569432]
[1672973575580,0.1781365,16842.0,16841.0,2.74314434]
[1672973576901,0.1781365,16842.0,16841.0,2.56569432]
[1672973580897,0.44548143,16842.0,16841.0,2.56569432]
[1672973581148,0.44558627,16842.0,16841.0,2.56569432]
[1672973581393,0.80165924,16842.0,16841.0,2.56569432]
[1672973581626,0.80165924,16842.0,16841.0,2.50488732]
[1672973582114,0.44558627,16842.0,16841.0,2.50488732]
[1672973582374,0.44548143,16842.0,16841.0,2.50488732]
[1672973582948,0.44548143,16842.0,16841.0,2.56569432]
[1672973583734,0.44548143,16842.0,16841.0,2.50488732]
[1672973584237,0.44548143,16842.0,16841.0,2.56569432]
[1672973584470,0.44548143,16842.0,16841.0,2.50488732]
[1672973585447,0.44548143,16842.0,16841.0,2.56569432]
[1672973590621,0.44548143,16842.0,16841.0,2.50488732]
[1672973591134,0.44548143,16842.0,16841.0,2.56569432]
[1672973594735,0.44548143,16842.0,16841.0,2.50488732]
[1672973595260,0.44548143,16842.0,16841.0,2.56569432]
[1672973596313,0.44548143,16842.0,16841.0,2.50488732]
[1672973596314,0.44558627,16842.0,16841.0,2.50488732]
[1672973596587,0.44548143,16842.0,16841.0,2.50488732]
[1672973597330,0.44548143,16842.0,16841.0,2.56569432]
[1672973597593,0.44548143,16842.0,16841.0,2.50488732]
[1672973597936,0.44548143,16842.0,16841.0,2.56569432]
[1672973598138,0.44548143,16842.0,16841.0,2.50488732]
[1672973603116,0.44548143,16842.0,16841.0,2.56569432]
[1672973603404,0.44548143,16842.0,16841.0,2.50488732]
[1672973605714,0.44548143,16842.0,16841.0,2.56569432]
[1672973607761,0.44548143,16842.0,16841.0,2.50488732]
[1672973609500,0.44548143,16842.0,16841.0,2.56569432]
[1672973611817,0.44548143,16842.0,16841.0,2.50488732]
[1672973612095,0.44558627,16842.0,16841.0,2.50488732]
[1672973612336,0.44548143,16842.0,16841.0,2.50488732]
[1672973612593,0.44548143,16842.0,16841.0,2.56569432]
[1672973612838,0.80165924,16842.0,16841.0,2.56569432]
[1672973613323,0.62352274,16842.0,16841.0,2.50488732]
[1672973613834,0.80177168,16842.0,16841.0,2.50488732]
[1672973614094,0.44559404,16842.0,16841.0,2.50488732]
[1672973615561,0.44559404,16842.0,16841.0,2.56569432]
[1672973615818,0.44559404,16842.0,16841.0,2.50488732]
[1672973616829,0.62362758,16842.0,16841.0,2.50480886]
[1672973617330,1.06891723,16842.0,16841.0,2.50480886]
[1672973617591,0.80143164,16842.0,16841.0,2.50480886]
[1672973617852,1.06878047,16842.0,16841.0,2.50480886]
[1672973618102,0.62352664,16842.0,16841.0,2.50480886]
[1672973618643,1.06878047,16842.0,16841.0,2.50480886]
[1672973618873,0.80143164,16842.0,16841.0,2.50480886]
[1672973619920,1.41318048,16842.0,16841.0,2.50480886]
[1672973620179,1.41318048,16842.0,16841.0,1.91029078]
[1672973620428,0.80143164,16842.0,16841.0,2.50480886]
[1672973626220,0.80153648,16842.0,16841.0,2.50480886]
[1672973626515,0.80143164,16842.0,16841.0,2.50480886]
[1672973628386,0.80143164,16842.0,16841.0,2.56561586]
[1672973628604,1.06861199,16842.0,16841.0,2.56561586]
[1672973628940,0.80143164,16842.0,16841.0,2.56561586]
[1672973629359,1.06861272,16842.0,16841.0,2.56561586]
[1672973630821,0.62335889,16842.0,16841.0,2.50480886]
[1672973632649,1.06861272,16842.0,16841.0,2.50480886]
[1672973632906,0.80143164,16842.0,16841.0,2.50480886]
[1672973634463,0.62333757,16842.0,16841.0,2.50480886]
[1672973635950,0.80143164,16842.0,16841.0,2.50480886]
[1672973636198,0.62334533,16842.0,16841.0,2.50480886]
[1672973636734,0.62334533,16842.0,16841.0,2.56561586]
[1672973637213,0.62334533,16842.0,16841.0,2.50480886]
[1672973637930,1.06859916,16842.0,16841.0,2.50480886]
[1672973638453,0.62334533,16842.0,16841.0,2.50480886]
[1672973639671,0.44527654,16842.0,16841.0,2.40842135]
[1672973639925,0.44527654,16842.0,16841.0,2.34761435]
[1672973640190,0.44527654,16843.0,16841.0,2.70531135]
[1672973640478,0.44527654,16843.0,16842.0,0.83527108]
[1672973640760,0.44527654,16843.0,16842.0,2.42277708]
[1672973641026,0.17810902,16843.0,16842.0,2.42277708]
[1672973642604,0.21310902,16843.0,16842.0,2.42477708]
[1672973643124,0.21310902,16843.0,16842.0,2.94959515]
[1672973643377,0.44527654,16844.0,16842.0,2.94759515]
[1672973643641,0.006,16843.0,16842.0,2.40227407]
[1672973643904,0.006,16843.0,16842.0,5.14577845]
[1672973644155,7.36497312,16845.0,16843.0,0.4]
[1672973644611,7.36497312,16845.0,16844.0,2.37556708]
[1672973644872,7.36497312,16845.0,16844.0,2.43635308]
[1672973645140,7.36497312,16845.0,16844.0,3.05348412]
[1672973645391,7.1868641,16845.0,16844.0,3.05348412]
[1672973645925,7.2178641,16845.0,16844.0,3.05548412]
[1672973651467,7.2178641,16845.0,16844.0,3.05581431]
[1672973652278,7.2178641,16845.0,16844.0,2.40018004]
[1672973653640,7.39597312,16845.0,16844.0,2.99469812]
[1672973653901,7.2178641,16845.0,16844.0,2.99469812]
[1672973654173,7.2178641,16845.0,16844.0,3.05548212]
[1672973655280,7.2178641,16845.0,16844.0,2.99469812]
[1672973658800,7.2178641,16845.0,16844.0,3.05548212]
[1672973659775,7.2178641,16845.0,16844.0,2.99469812]
[1672973660345,7.2178641,16845.0,16844.0,3.05548212]
[1672973660597,7.2178641,16845.0,16844.0,2.99469812]
[1672973661127,7.2178641,16845.0,16844.0,3.05548212]
[1672973663801,7.2178641,16845.0,16844.0,2.99469812]
[1672973664583,7.2178641,16845.0,16844.0,3.05548212]
[1672973664836,7.2178641,16845.0,16844.0,2.99469812]
[1672973665407,7.2178641,16845.0,16844.0,3.05548212]
[1672973670771,7.2178641,16845.0,16844.0,2.99469812]
[1672973671307,7.2178641,16845.0,16844.0,3.05548212]
[1672973673803,7.2178641,16845.0,16844.0,2.99469812]
[1672973674578,7.2178641,16845.0,16844.0,3.05548212]
[1672973677637,7.2178641,16845.0,16844.0,2.99469812]
[1672973678151,7.2178641,16845.0,16844.0,3.05548212]
[1672973680190,7.39597312,16845.0,16844.0,3.05548212]
[1672973681736,7.2178641,16845.0,16844.0,3.05548212]
[1672973682247,7.39597312,16845.0,16844.0,3.05548212]
[1672973683539,7.66314064,16845.0,16844.0,3.05548212]
[1672973686866,7.39597312,16845.0,16844.0,3.05548212]
[1672973687141,7.66314064,16845.0,16844.0,3.05548212]
[1672973688134,7.39597312,16845.0,16844.0,3.05548212]
[1672973688391,7.66314064,16845.0,16844.0,3.05548212]
[1672973691504,7.66314064,16845.0,16844.0,2.99469812]
[1672973692023,7.84120943,16845.0,16844.0,2.99469812]
[1672973696801,8.07888732,16845.0,16844.0,1.189366]
[1672973697055,8.27486677,16845.0,16844.0,1.189366]
[1672973697310,8.27476193,16845.0,16844.0,1.189366]
[1672973697586,7.66311793,16845.0,16844.0,1.189366]
[1672973698385,7.66311793,16845.0,16844.0,0.595683]
[1672973699431,7.66322277,16845.0,16844.0,0.595683]
[1672973699692,7.66311793,16845.0,16844.0,0.595683]
[1672973700978,7.66311793,16845.0,16844.0,1.189366]
[1672973701776,7.66322277,16845.0,16844.0,1.177727]
[1672973702054,7.66311793,16845.0,16844.0,1.177727]
[1672973702655,7.66322277,16845.0,16844.0,1.177727]
[1672973702921,7.66311793,16845.0,16844.0,1.177727]
[1672973704474,8.01919843,16845.0,16844.0,1.177727]
[1672973705007,7.66311793,16845.0,16844.0,1.177727]
[1672973705261,8.01919926,16845.0,16844.0,1.177727]
[1672973706346,8.63084326,16845.0,16844.0,1.177727]
[1672973707029,8.01919926,16845.0,16844.0,1.177727]
[1672973708353,8.01919926,16845.0,16844.0,0.584044]
[1672973710256,8.28621389,16845.0,16844.0,0.584044]
[1672973710521,7.84096006,16845.0,16844.0,0.584044]
[1672973713417,8.28621389,16845.0,16844.0,0.584044]
[1672973714780,7.84096006,16845.0,16844.0,0.584044]
[1672973716070,7.8410649,16845.0,16844.0,0.584044]
[1672973716322,8.01919926,16845.0,16844.0,0.584044]
[1672973718386,8.2862043,16845.0,16844.0,0.584044]
[1672973719134,8.01919926,16845.0,16844.0,0.584044]
[1672973719389,8.0193041,16845.0,16844.0,0.584044]
[1672973719659,8.01919926,16845.0,16844.0,1.177727]
[1672973719914,7.66311793,16845.0,16844.0,0.584044]
[1672973722727,8.01917454,16845.0,16844.0,0.584044]
[1672973723002,8.01917472,16845.0,16844.0,0.584044]
[1672973723516,7.66311793,16845.0,16844.0,0.584044]
[1672973723765,7.66311793,16845.0,16844.0,1.177727]
[1672973724023,7.66311793,16845.0,16844.0,1.17765844]
[1672973724557,8.0192159,16845.0,16844.0,1.17765844]
[1672973727431,7.66311793,16845.0,16844.0,1.17765844]
[1672973730815,7.66322277,16845.0,16844.0,1.17765844]
[1672973731074,7.66311793,16845.0,16844.0,1.17765844]
[1672973732367,7.66311793,16845.0,16844.0,1.82938819]
[1672973732633,8.01943451,16845.0,16844.0,1.82938819]
[1672973735516,8.01943451,16845.0,16844.0,1.89017219]
[1672973736301,8.28670427,16845.0,16844.0,1.89017219]
[1672973736570,8.01943451,16845.0,16844.0,1.89017219]
[1672973737372,8.28668398,16845.0,16844.0,1.89017219]
[1672973737632,7.84143015,16845.0,16844.0,1.89017219]
[1672973738385,8.28668398,16845.0,16844.0,1.89017219]
[1672973738929,7.84143015,16845.0,16844.0,1.89017219]
[1672973739181,7.84143015,16845.0,16844.0,1.82938819]
[1672973739442,7.84143015,16845.0,16844.0,1.89017219]
[1672973739660,8.28668398,16845.0,16844.0,1.89017219]
[1672973739958,7.84143015,16845.0,16844.0,1.89017219]
[1672973740463,8.28668398,16845.0,16844.0,1.89017219]
[1672973740802,7.84143015,16845.0,16844.0,1.89017219]
[1672973741629,8.28668398,16845.0,16844.0,1.82938819]
[1672973742159,7.84143015,16845.0,16844.0,1.82938819]
[1672973742420,7.84143015,16845.0,16844.0,1.89017219]
[1672973743603,7.66324425,16845.0,16844.0,1.89017219]
[1672973744120,8.01956083,16845.0,16844.0,1.89017219]
[1672973744342,7.66324425,16845.0,16844.0,1.89017219]
[1672973750883,7.66334909,16845.0,16844.0,1.89017219]
[1672973751191,7.66324425,16845.0,16844.0,1.89017219]
[1672973752207,7.66334909,16845.0,16844.0,1.89017219]
[1672973752485,7.66324425,16845.0,16844.0,1.89017219]
[1672973752988,8.01956083,16845.0,16844.0,1.89017219]
[1672973754221,7.66324425,16845.0,16844.0,1.89017219]
[1672973761465,7.66324425,16845.0,16844.0,1.88350419]
[1672973766573,7.39599478,16845.0,16844.0,1.88350419]
[1672973767310,7.39599478,16845.0,16844.0,1.82272019]
[1672973767815,7.39599478,16845.0,16844.0,1.88350419]
[1672973769600,7.39609962,16845.0,16844.0,1.88350419]
[1672973769854,7.66324425,16845.0,16844.0,1.88350419]
[1672973770108,7.39599478,16845.0,16844.0,1.88350419]
[1672973772206,7.39609962,16845.0,16844.0,1.88350419]
[1672973772472,7.39599478,16845.0,16844.0,1.88350419]
[1672973773746,7.39599478,16845.0,16844.0,1.82272019]
[1672973774010,7.39599478,16845.0,16844.0,9.38350419]
[1672973774266,7.2178641,16845.0,16844.0,9.38350419]
[1672973775064,7.2178641,16845.0,16844.0,2.06095421]
[1672973775322,7.2178641,16845.0,16844.0,2.00017021]
[1672973775571,7.2178641,16845.0,16844.0,9.56095421]
[1672973776097,7.2178641,16845.0,16844.0,9.38350419]
[1672973777509,7.2178641,16845.0,16844.0,9.56095421]
[1672973778029,7.2178641,16845.0,16844.0,9.38350419]
[1672973778278,7.2178641,16845.0,16844.0,1.88350419]
[1672973778563,7.21796894,16845.0,16844.0,1.82272019]
[1672973778798,7.39609962,16845.0,16844.0,1.82272019]
[1672973779054,7.66324425,16845.0,16844.0,1.88350419]
[1672973782457,7.39599478,16845.0,16844.0,1.88350419]
[1672973783204,7.39599478,16845.0,16844.0,1.82272019]
[1672973783500,7.39609962,16845.0,16844.0,1.82272019]
[1672973783706,7.39599478,16845.0,16844.0,1.88350419]
[1672973793487,7.66324425,16845.0,16844.0,1.88350419]
[1672973793714,7.66324425,16845.0,16844.0,1.82272019]
[1672973794231,7.39599478,16845.0,16844.0,1.88350419]
[1672973796062,7.66324425,16845.0,16844.0,1.88350419]
[1672973797892,7.39599478,16845.0,16844.0,1.88350419]
[1672973798881,7.66324425,16845.0,16844.0,1.88350419]
[1672973800861,7.65822425,16845.0,16844.0,1.88350419]
[1672973802078,7.39097478,16845.0,16844.0,1.88350419]
[1672973802326,7.65822425,16845.0,16844.0,1.88350419]
[1672973808496,7.64803806,16845.0,16844.0,1.88350419]
[1672973809017,7.8263288,16845.0,16844.0,1.82272019]
[1672973809291,8.43786796,16845.0,16844.0,1.82272019]
[1672973809530,7.82622396,16845.0,16844.0,1.82272019]
[1672973810087,8.00422832,16845.0,16844.0,1.82272019]
[1672973811356,8.00422832,16845.0,16844.0,1.88350419]
[1672973811600,7.82622648,16845.0,16844.0,1.82272019]
[1672973811863,8.27148031,16845.0,16844.0,1.88350419]
[1672973812118,7.82622648,16845.0,16844.0,1.82272019]
[1672973814748,7.82622648,16845.0,16844.0,1.88350419]
[1672973815515,7.82622648,16845.0,16844.0,1.82272019]
[1672973815773,7.64804352,16845.0,16844.0,1.88350419]
[1672973816037,8.25968752,16845.0,16844.0,1.82272019]
[1672973816301,7.64804352,16845.0,16844.0,1.82272019]
[1672973816548,7.64804352,16845.0,16844.0,1.88350419]
[1672973816807,7.64804352,16845.0,16844.0,1.82272019]
[1672973817088,7.64804352,16845.0,16844.0,1.88350419]
[1672973821025,7.64804352,16845.0,16844.0,1.82272019]
[1672973821283,8.25968752,16845.0,16844.0,1.82272019]
[1672973821519,7.64804352,16845.0,16844.0,1.82272019]
[1672973821814,7.64804352,16845.0,16844.0,1.88350419]
[1672973823926,7.64804352,16845.0,16844.0,1.82272019]
[1672973824615,7.64804352,16845.0,16844.0,1.88350419]
[1672973825068,7.64804352,16845.0,16844.0,1.82272019]
[1672973825292,7.64804352,16845.0,16844.0,1.88350419]
[1672973826813,8.61610894,16845.0,16844.0,1.82272019]
[1672973827079,8.25968752,16845.0,16844.0,1.82272019]
[1672973827334,7.64804352,16845.0,16844.0,1.88350419]
[1672973829930,7.64814836,16845.0,16844.0,1.88350419]
[1672973830176,8.00446494,16845.0,16844.0,1.82272019]
[1672973830445,7.82622648,16845.0,16844.0,1.88350419]
[1672973830950,7.82622648,16845.0,16844.0,1.82272019]
[1672973831220,8.00438197,16845.0,16844.0,1.82272019]
[1672973831468,7.64806539,16845.0,16844.0,1.88350419]
[1672973831722,7.64806634,16845.0,16844.0,1.88350419]
[1672973832752,8.00438292,16845.0,16844.0,1.88350419]
[1672973833023,7.64806634,16845.0,16844.0,1.88350419]
[1672973833288,7.64806634,16845.0,16844.0,1.82272019]
[1672973833756,7.64806634,16845.0,16844.0,1.88350419]
[1672973839559,7.38081435,16845.0,16844.0,1.82272019]
[1672973839806,7.38081435,16845.0,16844.0,9.32272019]
[1672973840087,7.38081435,16845.0,16844.0,9.38350419]
[1672973840877,7.38081435,16845.0,16844.0,1.88350419]
[1672973841123,7.38081435,16845.0,16844.0,1.82272019]
[1672973841383,7.38081435,16845.0,16844.0,9.32272019]
[1672973841653,7.38081435,16845.0,16844.0,9.38350419]
[1672973842163,7.38081435,16845.0,16844.0,1.88350419]
[1672973842415,7.38081435,16845.0,16844.0,1.82272019]
[1672973842661,7.20265791,16845.0,16844.0,9.50017021]
[1672973842922,7.20265791,16845.0,16844.0,9.56095421]
[1672973843679,7.20265791,16845.0,16844.0,9.38350419]
[1672973844471,7.20265791,16845.0,16844.0,9.56095421]
[1672973846754,7.20265791,16845.0,16844.0,1.88350419]
[1672973846998,7.20265791,16845.0,16844.0,1.82272019]
[1672973847505,7.20265791,16845.0,16844.0,1.88350419]
[1672973850640,7.20265791,16845.0,16844.0,1.82272019]
[1672973850865,7.20265791,16845.0,16844.0,9.32272019]
[1672973851211,7.20265791,16845.0,16844.0,9.56095421]
[1672973851427,7.20265791,16845.0,16844.0,10.42107691]
[1672973851674,7.20265791,16845.0,16844.0,2.92107691]
[1672973852202,7.20265791,16845.0,16844.0,3.79834943]
[1672973853002,6.26691754,16845.0,16844.0,3.79834943]
[1672973853246,6.26691754,16845.0,16844.0,4.09834943]
[1672973854524,6.26691754,16845.0,16844.0,3.79834943]
[1672973855048,6.26191754,16845.0,16844.0,2.92107691]
[1672973855557,6.26191754,16845.0,16844.0,2.65490188]
[1672973855848,6.26191754,16845.0,16844.0,10.15490188]
[1672973856391,6.26191754,16845.0,16844.0,11.72107691]
[1672973856840,6.26191754,16845.0,16844.0,10.72107691]
[1672973857088,6.26191754,16845.0,16844.0,11.53964462]
[1672973857349,6.26191754,16845.0,16844.0,3.38791487]
[1672973857616,6.26191754,16845.0,16844.0,4.32700185]
[1672973857855,6.26191754,16845.0,16844.0,11.88778585]
[1672973858112,6.26191754,16845.0,16844.0,12.24322428]
[1672973858661,6.26191754,16845.0,16844.0,12.06577426]
[1672973858904,6.23091754,16845.0,16844.0,12.06377426]
[1672973859156,6.23291754,16845.0,16844.0,12.10177426]
[1672973859403,6.23291754,16845.0,16844.0,11.92396674]
[1672973859677,6.23291754,16845.0,16844.0,12.27940517]
[1672973860210,6.23291754,16845.0,16844.0,12.10177426]
[1672973861376,6.23291754,16845.0,16844.0,12.74859502]
[1672973861629,6.23291754,16845.0,16844.0,12.60121028]
[1672973861882,6.23291754,16845.0,16844.0,12.57075344]
[1672973865359,6.23291754,16845.0,16844.0,12.62756415]
[1672973865614,6.23291754,16845.0,16844.0,12.62419995]
[1672973868321,6.23291754,16845.0,16844.0,11.92393268]
[1672973870143,6.23291754,16845.0,16844.0,12.52274871]
[1672973870650,6.23291754,16845.0,16844.0,11.52274871]
[1672973870905,6.23291754,16845.0,16844.0,10.70431002]
[1672973871177,6.23291754,16845.0,16844.0,11.52249969]
[1672973872389,6.23291754,16845.0,16844.0,11.81931969]
[1672973873152,5.93291754,16845.0,16844.0,11.81931969]
[1672973873375,5.93291754,16845.0,16844.0,11.73073889]
[1672973873625,5.93291754,16845.0,16844.0,10.91254922]
[1672973873884,5.93291754,16845.0,16844.0,10.34637419]
[1672973874660,5.93291754,16845.0,16844.0,9.87195734]
[1672973874914,5.93291754,16845.0,16844.0,2.66879734]
[1672973875165,5.93291754,16845.0,16844.0,2.60801334]
[1672973875664,5.93291754,16845.0,16844.0,2.66879734]
[1672973876678,5.93291754,16845.0,16844.0,2.84639419]
[1672973877949,5.93291754,16845.0,16844.0,2.54955419]
[1672973878198,5.93291754,16845.0,16844.0,2.84638419]